Cogmind - Beta 16 --- EXPLORER MODE // 2026.01.13 @ 17:32:05 Player: K.K.Y. Result: Destroyed by GN-ZRN(R) with Subdweller Laser Performance ------------- Evolutions (0) 0 Regions Visited (3) 600 Robots Destroyed (36) 180 Value Destroyed (701) 701 Prototype IDs (0) 0 Alien Tech Used (0) 0 Bonus (-106) -106 TOTAL SCORE: 1375 Bonus ------- Follower Combat Kills 60 Friendly Fire -166 Cogmind --------- Core Integrity 0/250 Matter 270/300 Energy 150/150 System Corruption 0% Temperature Cool (6) Movement Treading (400) Ox3 Location -10/Subcaves Parts ------- > --- POWER (1) -------- Light Angular Momentum Engine > --- PROPULSION (2) --- Light Treads Makeshift Leg > --- UTILITY (3) ------ Improved Heat Sink High-capacity Storage Unit Structural Scanner > --- WEAPON (2) ------- Subdweller Beam Cannon Battle Cannon > --- INVENTORY (20) --- Large Storage Unit Huge Storage Unit Experimental Sensor Array Improved Terrain Scanner Dirty Datajack (20) SUBCON Basin (Full) Peak State ------------ > --- POWER ------------ Light Angular Momentum Engine > --- PROPULSION ------- Makeshift Leg Subdweller Monowheel > --- UTILITY ---------- Improved Heat Sink High-capacity Storage Unit Structural Scanner > --- WEAPON ----------- Subdweller Beam Cannon Battle Cannon > --- INVENTORY -------- Large Storage Unit Huge Storage Unit Experimental Sensor Array Improved Terrain Scanner Dirty Datajack SUBCON Basin [Rating: 40] Favorites ----------- Power Ion Engine Engine Ion Engine Power Core Light Nuclear Core Propulsion Light Treads Treads Light Treads Leg Makeshift Leg Wheel Compact Wheel Utility Light Armor Plating Device Improved Heat Sink Storage Large Storage Unit Protection Light Armor Plating Weapon Small Laser Energy Gun Small Laser Energy Cannon Subdweller Beam Cannon Ballistic Cannon Battle Cannon Special Weapon Mining Laser Build | -11 -10 -10 -10 ------- Run | Yrd Mat Min Sub Slots Evolved 1 | . 1 . . Power . | . . . . Propulsion . | . . . . Utility 1 | . 1 . . Weapon . | . . . . Parts Attached 27 | 6 5 2 14 Power 3 | 1 . . 2 Engine 2 | 1 . . 1 Core 1 | . . . 1 Reactor . | . . . . Propulsion 7 | 2 . 1 4 Treads 3 | 2 . . 1 Leg 1 | . . . 1 Wheel 3 | . . 1 2 Hover . | . . . . Flight . | . . . . Utility 8 | 2 2 1 3 Device 3 | . . 1 2 Storage 3 | 1 1 . 1 Processor . | . . . . Hackware . | . . . . Protection 2 | 1 1 . . Artifact . | . . . . Weapon 9 | 1 3 . 5 Energy Gun 4 | 1 2 . 1 Energy Cannon 1 | . . . 1 Ballistic Gun . | . . . . Ballistic Cannon 2 | . . . 2 Launcher . | . . . . Special Weapon 2 | . 1 . 1 Impact Weapon . | . . . . Slashing Weapon . | . . . . Piercing Weapon . | . . . . Special Melee Weapon . | . . . . Unidentified Prototypes . | . . . . Parts Lost 7 | . . . 7 Power 1 | . . . 1 Propulsion . | . . . . Utility 1 | . . . 1 Weapon 5 | . . . 5 Highest Loss Streak 5 | . . . 5 To Critical Strikes . | . . . . Average Backups 5 | . 4 7 6 Power . | . . . . Propulsion . | . . . . Utility 4 | . 3 5 4 Weapon . | . 1 1 . Tool/Special . | . . . . Unused Backups 7 | . 2 . 5 Power 1 | . 1 . . Propulsion . | . . . . Utility 4 | . . . 4 Weapon 1 | . 1 . . Tool/Special 1 | . . . 1 Average Slot Usage (%) 86 | . 84 84 90 Engine 11 | . 12 12 10 Treads 12 | . 24 11 3 Leg 2 | . . . 6 Wheel 4 | . . 5 8 Device 10 | . . 5 22 Storage 12 | . 12 12 12 Protection 7 | . 11 12 1 Energy Gun 16 | . 22 25 4 Energy Cannon 3 | . . . 9 Ballistic Cannon 3 | . . . 7 Peak Build Rating 40 | 6 8 12 40 Average Rating 16 | 5 7 10 30 On Entrance 6 | . 6 8 12 Avg Prop Armor Cover (%) 8 | . . 18 7 Naked Turns . | . . . . Heaviest Build 62 | 19 32 33 62 Greatest Support 40 | 40 40 40 36 Greatest Overweight (x) 10 | 6 1 10 3 Average Overweight (x) 1 | . . 1 1 Largest Inventory Capacity 20 | 10 15 15 20 Average Capacity 15 | 9 12 15 18 Most Carried 20 | 4 9 11 20 Average Carried 9 | . 4 7 16 Final Capacity 20 | 10 15 15 20 Final Carried 20 | 2 6 9 20 Class Distribution -------------------- 68% | Hacker-Mutant 31% | Scavenger-Mutant Dominant Class ---------------- Hacker-Mutant | -10/Materials Hacker-Mutant | -10/Mines Scavenger-Mutant | -10/Subcaves Resources | -11 -10 -10 -10 ----------- Run | Yrd Mat Min Sub Matter Collected 620 | 260 90 95 175 Remotely . | . . . . Salvage Created 1318 | 159 561 250 348 Parts 69 | 8 35 7 19 Haulers Intercepted 2 | . 2 . . Recyclers Shooed 4 | 1 3 . . Parts Field Recycled . | . . . . Retrieved Matter . | . . . . Parts Self-Destructed . | . . . . Prevented . | . . . . Parts Restored . | . . . . Kills | -11 -10 -10 -10 ------- Run | Yrd Mat Min Sub Combat Hostiles Destroyed 19 | . 8 2 9 Melee 1 | . . . 1 Guns 14 | . 8 2 4 Cannons 4 | . . . 4 Classes Destroyed 12 | 3 5 . 4 Worker 1 | 1 . . . Builder 2 | . 2 . . Tunneler 2 | 2 . . . Hauler 2 | . 2 . . Recycler 4 | 1 1 2 . Turret 2 | . . . 2 Watcher 2 | . 2 . . Swarmer 7 | . 2 . 5 Grunt 8 | . 6 2 . Sentry 1 | . . . 1 Subdweller 3 | . . . 3 Zionite 2 | . . . 2 Best Kill Streak 3 | 2 3 2 3 Combat Bots Only 3 | . 2 2 3 Max Kills in Single Turn 2 | 1 1 1 2 Gunslinging 1 | . . . 1 Exploded . | . . . . Melee 1 | . . . 1 Uniques/NPCs Destroyed . | . . . . Combat | -11 -10 -10 -10 -------- Run | Yrd Mat Min Sub Hostile Shots Fired 177 | . 47 8 122 Missed 64 | . 7 3 54 Hits 113 | . 40 5 68 Projectile 113 | . 40 5 68 Critical Strikes 1 | . . . 1 Damage Taken 1041 | . 289 42 710 Core 255 | . 50 10 195 Absorbed by Shields . | . . . . Ignored by Resistances 642 | . 189 25 428 Core Remaining (%) 100 | 100 . . . Volleys Fired 146 | 18 64 15 49 Largest 2 | 1 2 2 2 Hottest 165 | 40 140 105 165 Shots Fired 230 | 18 96 30 86 Gun 192 | 18 94 30 50 Cannon 34 | . . . 34 Launcher . | . . . . Special 4 | . 2 . 2 Kinetic 16 | . . . 16 Thermal 214 | 18 96 30 70 Explosive . | . . . . Electromagnetic . | . . . . Robot Hit Streak 42 | 10 39 21 42 Robot Miss Streak 4 | 1 4 1 1 Penetration Max . | . . . . Secondary Targets 2 | . 1 . 1 Max Gunslinging Chain 1 | . 1 . 1 Shots Hit Robots 182 | 17 74 26 65 Core Hits 63 | 5 29 9 20 Critical Kills 1 | . . . 1 Critical Parts Destroyed . | . . . . Critical Strikes 3 | . . 1 2 Burn 1 | . . 1 . Meltdown 1 | . . . 1 Blast 1 | . . . 1 Melee Attacks . | . . . . Impact . | . . . . Slashing . | . . . . Piercing . | . . . . Sneak Attacks . | . . . . Combat Hostiles . | . . . . Follow-up Attacks . | . . . . Damage Inflicted 2441 | 188 832 348 1073 Guns 1900 | 188 832 348 532 Cannons 502 | . . . 502 Explosions . | . . . . Melee . | . . . . Ramming 29 | . . . 29 Kinetic 188 | . . . 188 Thermal 2224 | 188 832 348 856 Explosive . | . . . . Electromagnetic . | . . . . Impact . | . . . . Slashing . | . . . . Piercing . | . . . . Highest Corruption . | . . . . Average Corruption . | . . . . Corruption Purged . | . . . . Corruption Blocked . | . . . . Overload Shots . | . . . . Overflow Damage 10 | . . . 10 Projectiles 10 | . . . 10 Explosions . | . . . . Melee . | . . . . Knockbacks 4 | . . . 4 Impact 1 | . . . 1 Kinetic 3 | . . . 3 Secondary . | . . . . Self-Inflicted Damage 13 | . . . 13 Shots . | . . . . Rammed 9 | . . . 9 Targets Rammed 9 | . . . 9 Kicked . | . . . . Crushed . | . . . . Highest Temperature 436 | 24 390 436 4 Average Temperature 104 | 11 99 160 2 Received Heat Transfer 699 | . 213 36 450 Effects 10 | . 5 5 . Shutdowns 1 | . 1 . . Energy Bleed 1 | . 1 . . Interference 4 | . 2 2 . Matter Decay 1 | . . 1 . Short Circuit 2 | . . 2 . Damage (minor) 1 | . 1 . . Siege Activations . | . . . . Martial Activations . | . . . . Shielding Activations . | . . . . Robots Disrupted . | . . . . Combat Hostiles . | . . . . Robots Corrupted . | . . . . Combat Hostiles . | . . . . Parts Fried . | . . . . Impact Corruptions . | . . . . Robots Melted 1 | . . . 1 Combat Hostiles . | . . . . Parts Melted 5 | . 4 . 1 Heat Transferred 4944 | 425 1922 880 1717 Parts Sabotaged . | . . . . Parts Stolen . | . . . . Parts Stripped . | . . . . Power Chain Reactions . | . . . . Alert | -11 -10 -10 -10 ------- Run | Yrd Mat Min Sub Maximum Alert Level . | . . . . Low Security (%) 100 | 100 100 100 . Level 1 . | . . . . Level 2 . | . . . . Level 3 . | . . . . Level 4 . | . . . . Level 5 . | . . . . High Security . | . . . . Max Security . | . . . . Peak Influence 50 | 10 45 50 . Initial 2 | . 2 . . Average 2 | 1 4 1 . Influence Increases 557 | 20 247 60 230 Destroy 0b10 Robot/C 360 | . 160 40 160 Destroy 0b10 Robot/NC 65 | 20 35 10 . Destroy Leader 58 | . 38 10 10 Successful Hack 10 | . 10 . . Disable Machine 4 | . 4 . . Lose Combat Pursuer 60 | . . . 60 Influence Decreases 557 | 15 252 60 230 Entered New Map 3 | . 3 . . Time Decay 504 | 15 249 60 180 Lost Part 20 | . . . 20 Lost Ally 30 | . . . 30 Squads Dispatched . | . . . . Investigation . | . . . . Extermination . | . . . . Reinforcement . | . . . . Assault . | . . . . Garrison . | . . . . Intercept . | . . . . Searches Triggered . | . . . . Construction Impeded . | . . . . Haulers Reinforced . | . . . . Active Scanning Responses . | . . . . Cargo Convoy Interrupts . | . . . . Stealth | -11 -10 -10 -10 --------- Run | Yrd Mat Min Sub Distress Signals 1 | . 1 . . Communications Jammed . | . . . . Distress Signals . | . . . . Times Spotted 35 | . 14 2 19 Peak Tracking Total 6 | . 3 2 6 Tactical Retreats 2 | . . . 2 Traps | -11 -10 -10 -10 ------- Run | Yrd Mat Min Sub Traps Triggered 2 | . 2 . . Indirectly . | . . . . Trap Hack Attempts . | . . . . Triggered . | . . . . Disarmed . | . . . . Reprogrammed . | . . . . Reused . | . . . . Traps Extracted . | . . . . Installed . | . . . . Triggered . | . . . . Machines | -11 -10 -10 -10 ---------- Run | Yrd Mat Min Sub Machines Disabled 1 | . 1 . . Max in Single Turn 1 | . 1 . . Machines Repaired . | . . . . Machines Dismantled . | . . . . Machines Sabotaged . | . . . . Overloaded Fab Kills . | . . . . Hacking | -11 -10 -10 -10 --------- Run | Yrd Mat Min Sub Machines Accessed 8 | . 5 . 3 Terminals 3 | . 3 . . Fabricators . | . . . . Repair Stations . | . . . . Recycling Units 2 | . 2 . . Scanalyzers . | . . . . Garrison Access . | . . . . Total Hacks 17 | . 11 . 6 Successful 12 | . 6 . 6 Failed 5 | . 5 . . Catastrophic . | . . . . Database Lockouts . | . . . . Manual 4 | . 4 . . Terminals 6 | . 6 . . Fabricators . | . . . . Repair Stations . | . . . . Recycling Units 5 | . 5 . . Scanalyzers . | . . . . Garrison Access . | . . . . Terminal Hacks 9 | . 3 . 6 Record 6 | . 2 . 4 Robot Analysis 1 | . 1 . . Open Door 1 | . . . 1 Release Object 1 | . . . 1 Fabricator Hacks . | . . . . Repair Station Hacks . | . . . . Recycling Unit Hacks 1 | . 1 . . Retrieve Components 1 | . 1 . . Scanalyzer . | . . . . Garrison Access Hacks . | . . . . Unauthorized Hacks 2 | . 2 . . Terminals 2 | . 2 . . Botnet 2 | . 2 . . Fabricators . | . . . . Repair Stations . | . . . . Recycling Units . | . . . . Scanalyzers . | . . . . Garrison Access . | . . . . Data Cores Recovered . | . . . . Used . | . . . . Hacking Detections 3 | . 3 . . Full Trace Events 2 | . 2 . . Feedback Events . | . . . . Feedback Blocked . | . . . . Robot Schematics Acquired . | . . . . Robots Built . | . . . . Authchips . | . . . . Time . | . . . . Total Robot Build Rating . | . . . . Part Schematics Acquired . | . . . . Parts Built . | . . . . Authchips . | . . . . Time . | . . . . Total Part Build Rating . | . . . . Part Studies Acquired . | . . . . Parts Repaired . | . . . . Time . | . . . . Parts Recycled . | . . . . Recycled Matter . | . . . . Retrieved Matter . | . . . . Retrieved Components 1 | . 1 . . Parts Scanalyzed . | . . . . Part Schematics Acquired . | . . . . Parts Damaged . | . . . . Bothacking | -11 -10 -10 -10 ------------ Run | Yrd Mat Min Sub Used RIF Installer . | . . . . Robots Hacked . | . . . . Non-combat . | . . . . Combat . | . . . . Robot Hacks Applied . | . . . . Relay Couplers Released . | . . . . Fabnet Peak Effective % . | . . . . Robots Rewired . | . . . . Allies Hacked . | . . . . Hacks Repelled . | . . . . Allies | -11 -10 -10 -10 -------- Run | Yrd Mat Min Sub Total Allies 3 | . . 3 . Largest Group 3 | . . 3 3 Highest-Rated Group 40 | . . 40 40 Highest-Rated Ally 16 | . . 16 16 Total Orders . | . . . . Ally Attacks 17 | . . . 17 Total Damage 194 | . . . 194 Kills 2 | . . . 2 Allies Corrupted . | . . . . Allies Melted 1 | . . . 1 Intel | -11 -10 -10 -10 ------- Run | Yrd Mat Min Sub Active Infowar (turns) 1598 | . . . 1598 Sensors 80 | . . . 80 Structural 1598 | . . . 1598 Robot Analysis Total 1 | . 1 . . Derelict Logs Recovered 3 | . . 1 2 Drone Launches . | . . . . Drone Recoveries . | . . . . Exploration | -11 -10 -10 -10 ------------- Run | Yrd Mat Min Sub Turns Passed 4858 | 158 1435 1399 1866 Spaces Moved 2439 | 68 731 770 870 Core 61 | 22 . 39 . Treads 1179 | 46 731 276 126 Legs 96 | . . . 96 Wheels 1103 | . . 455 648 Hover . | . . . . Flight . | . . . . Fastest Speed 50 | 50 160 115 105 Average Speed 170 | 155 160 162 187 Slowest Speed 550 | 350 240 550 400 Overloaded Moves . | . . . . Propulsion Burnouts . | . . . . Robots Hopped . | . . . . Potential Cave-ins . | . . . . Cave-ins Triggered . | . . . . Exploration Rate (%) 66 | 5 97 100 62 Regions Visited 3 Branch Regions 2 Pre-discovered Areas 1 | . . . 1 Known Exits Taken 3 | 1 1 1 . Unknown Exits Taken . | . . . . Scrap Searched 6 | . . . 6 Spaces Dug 2 | . . . 2 Terrain Destroyed 3 | . . . 3 Melee . | . . . . Projectile 3 | . . . 3 AOE . | . . . . Terrain Rammed . | . . . . Walls Destroyed . | . . . . Machines Disabled . | . . . . Actions | -11 -10 -10 -10 --------- Run | Yrd Mat Min Sub Total 2903 | 103 894 893 1013 Wait 226 | 4 73 98 51 Move 2436 | 67 730 769 870 Hop . | . . . . Pick Up 34 | 8 13 5 8 Fast Attach 4 | . . . 4 Attach 22 | 6 6 2 8 Detach 4 | . 1 2 1 Swap 8 | . 3 . 5 Drop 14 | . 4 2 8 Fire 146 | 18 64 15 49 Melee . | . . . . Ram 9 | . . . 9 Kick . | . . . . Crush . | . . . . Escape Stasis . | . . . . Rewire . | . . . . Trap . | . . . . Miscellaneous . | . . . . Route ------- -11/Scrapyard -10/Materials (discovered 4 exits: *Mat x3 / *Min) -10/Mines (discovered 4 exits: *Mat x2 / *Exi / *Sub) -10/Subcaves (discovered 2 exits: *Rec / [*Scr]) History --------- Turn | Location | Event 8 | -11/Scrapyard | Identified exit to Materials 8 | -11/Scrapyard | Discovered exit to Materials (range 16) 159 | -11/Scrapyard | Entered Materials 159 | -10/Materials | Evolved 1 slot: Utility x1 312 | -10/Materials | Build established: Hacker-Mutant 313 | -10/Materials | Identified exit to Materials 313 | -10/Materials | Discovered exit to Materials (range 10) 715 | -10/Materials | Identified exit to Mines 715 | -10/Materials | Discovered exit to Mines (range 7) 904 | -10/Materials | Discovered exit to Materials (range 15) 1304 | -10/Materials | Discovered exit to Materials (range 8) 1594 | -10/Materials | Entered Mines 1603 | -10/Mines | Met a Derelict bent on vengeance 1713 | -10/Mines | Found a hidden stash of uninstalled traps 1842 | -10/Mines | Discovered exit to Materials (range 8) 1897 | -10/Mines | Found a damaged Exp. Sensor Array with a note attached 1900 | -10/Mines | Found Prototype Device 2402 | -10/Mines | Learned 4 Materials zone layouts 2455 | -10/Mines | Discovered exit to Materials (range 9) 2490 | -10/Mines | Identified exit to Subcaves 2490 | -10/Mines | Discovered exit to Subcaves (range 6) 2544 | -10/Mines | Assisted by bots powering up and referring to "LRC-V3" 2791 | -10/Mines | Deemed a non-threat by the Exiles lab entrance 2791 | -10/Mines | Identified exit to Exiles 2791 | -10/Mines | Discovered exit to Exiles (range 5) 2993 | -10/Mines | Entered Subcaves 2993 | -10/Subcaves | Accompanied by 3 allies 2994 | -10/Subcaves | Approached by a straggling Scientist 3007 | -10/Subcaves | Ambushed by Subdwellers from Twisted Machinery 3158 | -10/Subcaves | Identified exit to Recycling 3158 | -10/Subcaves | Discovered exit to Recycling (range 15) 3171 | -10/Subcaves | Scientist uncovered a shortcut to Scraptown 3311 | -10/Subcaves | Core integrity fell below 50% 3340 | -10/Subcaves | Core integrity fell below 20% 3366 | -10/Subcaves | Lost 5 parts (1p4w) 3543 | -10/Subcaves | Learned Materials garrison access intel 3548 | -10/Subcaves | Found SUBCON Basin 3651 | -10/Subcaves | Build established: Scavenger-Mutant 3663 | -10/Subcaves | Visited Clippyterm 3666 | -10/Subcaves | Learned Research security intel 3807 | -10/Subcaves | Learned location of Zion (-7) 3807 | -10/Subcaves | Met a Zionite searching for "candidates" 3972 | -10/Subcaves | Learned Materials emergency access door positions 4023 | -10/Subcaves | Shifting Twisted Machinery released Flamer 4029 | -10/Subcaves | Shifting Twisted Machinery released Sub. Shrapnel Launcher 4799 | -10/Subcaves | A swath of the cavern ceiling suddenly collapsed 4859 | -10/Subcaves | Destroyed by GN-ZRN(R) with Subdweller Laser Last Messages --------------- 04653_ Searching scrap... 04653_ Found Battle Rifle. 04653_ Found Battle Cannon. 04653_ Found 47 Matter. 04661_ Dropped Battle Cannon. 04662_ Subatomizers dissect the Sub. Power Source. 04682_ Acquired 10 matter. 04689_ Subatomizers dissect the Sub. Power Source. 04700_ Subatomizers dissect the Sub. Power Source, destroying it. A swath of the cavern ceiling suddenly collapses. 04831_ GN-ZRN(R): "OHNO!" 04845_ UD-8TT(R) knocked back. 04851_ UD-8TT(R) suffers critical hit (Blast). 04851_ Destroyed Sub. Power Source. 04854_ UD-8TT(R) knocked back. 04857_ Destroyed Scrap Shield. Map ----- +----------------------------------------------------+ | ?????????????????????????????????????????????????? | | ?????????????????????????????????????????????????# | | ?????????????????????????????????????????????????# | | ?????????????????????????????????????????????????# | | ?????????????????????????????????????????????????# | | ?????????????????????????????????????????????????# | | ?????????????????????????????????????????????????# | | ?????????????????????????????????????????????????# | | ????????????????????????????????????????????????? | | ?????????????????????????????????????????????????? | | ?????????????????????????????????????????????????? | | ?????????????????????????????????????????????????? | | ?????????????????????????????????????????????????? | | ?????????????????####????????????????????????????? | | ?????????????????###"?? ?????????????????????????? | | ?????????????????##" ? ?????????????????????????? | | ??????????????????## """?????????????????????????? | | ??????????????????## "" ###??????????????????????? | | ??????????????????"## " ###??????????????????????? | | ??????????????????"# # "" ?????? ?????????????? | | ??????????????????" """ #???## ?????????????? | | ?????????????????????"" %##??### ????????????? | | ?????????????????????##R%###?## ?????????????? | | ?????????????????????##R%#### ??????????????? | | ????????????????????### ;##" ???????????????? | | ????????????????????## # @;#" ##???????????????? | | ??????????????????" "#= ; ;;;###???????????????? | | ?????????????????? #######;#;####????????????????? | | ???????????#####??########;#"####????????????????? | | ???????????########## #"#;#"###????????????????? | | ???????????##" ##### "#;## ##????????????????? | | ???????????## ### "##" ##????????????????? | | ???????????#### # #### # ###????????????????? | | ???????????##### ############????????????????? | | ?????????????#### ###########?????????????????? | | ??????????????### ######?????????????????????? | | ???????????????## ###?????????????????????? | | ??????????????### ##?????????????????????? | | ??????########### ###????????????????????? | | ??????########## #####??????????????????? | | ??????##!%## #######???????????????? | | ??????##%["##"% #####???????????????? | | ??????###/&][ ## #######?????????? | | ??????## #%# * ### #######?????????? | | ??????## %###=%! ###### ##??######## | | ??????####### ! ####### ###??######## | | ??????######## ####????## ##???## # | | ???????????### ########?##### ######## | | ????????????### ############## ######### | | ????????????### ##????##### ## ### ### | +----------------------------------------------------+ Best States ------------- Heat Dissipation 39 Energy Generation 18 Energy Capacity 250 Matter Stores 300 Matter Capacity 300 Sight Range 16 Robot Scan Range 14 Terrain Scan Density 10 Armor Coverage 150 Resistance: KI 35 Resistance: TH 35 Resistance: EX 35 Resistance: EM 35 Resistance: I 35 Resistance: S 35 Resistance: P 35 Evasion (%) 50 Recoil Reduction 2 Offensive Hacking 20 Item Schematics ----------------- None Robot Schematics ------------------ None Fabricated ------------ Nothing Repaired ---------- Nothing Studied --------- None Alien Tech Used ----------------- None Achievements -------------- None Challenges ------------ None Game ------ Seed BombPhaseDissipator Manual? 0 Play Time 00:24:11 Cumulative 278.6 hours Start 2026.01.13 @ 17:14:59 End 2026.01.13 @ 17:32:05 Sessions 1 Manual Loads 0 Difficulty Explorer Special Mode None Game No. 436 Rogue 0 Adventurer 0 Explorer 436 Win Type - Total 0 Types 0/0/0/0/0/0/0/0/0/0 Lore% 74 Gallery% 69 Achievement% 55 Wizard Run 0 Options --------- Layout 1 ASCII 0 Keyboard 0 Movement Mouse Keybinds 1 Fullscreen 1 Font 24/Smallcaps Map View 50x35 Zoom Use 0% Tactical HUD 1 Map Filters NONE Filters NONE Steam 1 RUN: db1b93ac-0dfb-4045-b93a-0aaa0d9e8bc5